bitfinex/quotes_BTCUSD_20241229
["timestamp","ask_amount","ask_price","bid_price","bid_amount"]
[1735480777185,0.97131641,95133.0,95132.0,0.0021708]
[1735480777428,0.97131641,95133.0,95132.0,0.0001708]
[1735480777831,0.97231641,95133.0,95132.0,0.0001708]
[1735480778234,0.97131641,95133.0,95132.0,0.0001708]
[1735480778668,0.97131641,95133.0,95132.0,0.0031708]
[1735480780094,0.97131641,95133.0,95132.0,0.0041708]
[1735480780550,0.97131641,95133.0,95132.0,0.0031708]
[1735480780952,0.97131641,95133.0,95132.0,0.0041708]
[1735480783679,0.97131641,95133.0,95132.0,0.0819708]
[1735480784123,0.9548224,95133.0,95132.0,0.0819708]
[1735480784856,0.9548224,95133.0,95132.0,0.1819708]
[1735480785111,0.9548224,95133.0,95132.0,0.2273708]
[1735480787285,0.97131616,95133.0,95132.0,0.2273708]
[1735480789806,0.01657916,95133.0,95132.0,0.2273708]
[1735480790039,0.01602205,95133.0,95132.0,0.2273708]
[1735480790577,1.30372805,95133.0,95132.0,0.2273708]
[1735480791385,1.28449805,95133.0,95132.0,0.2273708]
[1735480791580,1.15207905,95133.0,95132.0,0.2273708]
[1735480793659,1.136057,95133.0,95132.0,0.2273708]
[1735480794034,3.508795,95152.0,95132.0,0.2273708]
[1735480794249,3.508795,95152.0,95133.0,0.0799]
[1735480794427,3.452815,95152.0,95133.0,0.0799]
[1735480794626,0.01978222,95151.0,95133.0,0.0799]
[1735480794928,3.720171,95150.0,95133.0,0.0799]
[1735480795285,0.01649334,95147.0,95133.0,0.0799]
[1735480795488,3.814819,95146.0,95133.0,0.0799]
[1735480795686,3.374622,95146.0,95133.0,0.0799]
[1735480795887,3.772906,95146.0,95133.0,0.0799]
[1735480796086,3.486354,95146.0,95133.0,0.0799]
[1735480796292,3.338784,95146.0,95133.0,0.0799]
[1735480797537,3.213624,95145.0,95133.0,0.0799]
[1735480798161,3.203604,95145.0,95133.0,0.0799]
[1735480798387,3.29709,95145.0,95133.0,0.0799]
[1735480798563,3.083607,95145.0,95133.0,0.0799]
[1735480798778,2.955971,95145.0,95133.0,0.0799]
[1735480798997,2.47974,95144.0,95133.0,0.0799]
[1735480799185,2.797683,95145.0,95133.0,0.0799]
[1735480799683,2.712928,95145.0,95133.0,0.0799]
[1735480799885,2.807234,95145.0,95133.0,0.0799]
[1735480800113,0.001,95145.0,95133.0,0.0799]
[1735480800266,2.631195,95144.0,95133.0,0.0799]
[1735480800475,2.476477,95143.0,95133.0,0.0799]
[1735480800701,2.263791,95142.0,95133.0,0.0799]
[1735480800900,2.44305,95144.0,95133.0,0.0799]
[1735480801504,2.404835,95144.0,95133.0,0.0799]
[1735480802050,2.404835,95144.0,95138.0,0.0473]
[1735480802051,1.913141,95144.0,95138.0,0.0473]
[1735480802253,1.522263,95143.0,95139.0,0.1799]
[1735480802380,1.328331,95142.0,95140.0,0.0799]
[1735480802598,1.479278,95144.0,95140.0,0.0799]
[1735480802791,0.996698,95144.0,95140.0,0.0799]
[1735480802994,0.001,95144.0,95140.0,0.1799]
[1735480803295,1.230022,95143.0,95141.0,0.0799]
[1735480803518,1.24905,95142.0,95141.0,0.0799]
[1735480803719,2.687922,95152.0,95141.0,0.0799]
[1735480804049,3.160411,95152.0,95141.0,0.0799]
[1735480804814,0.01978209,95151.0,95141.0,0.0799]
[1735480805159,2.959922,95150.0,95141.0,0.0819]
[1735480806025,3.695101,95152.0,95141.0,0.0819]
[1735480806235,3.824381,95152.0,95141.0,0.0819]
[1735480806603,3.525481,95152.0,95141.0,0.0829]
[1735480806774,3.837946,95152.0,95141.0,0.0809]
[1735480807011,0.01978201,95151.0,95141.0,0.0809]
[1735480807143,3.72544901,95151.0,95141.0,0.0799]
[1735480807345,0.01978201,95151.0,95141.0,0.0799]
[1735480807715,4.216413,95150.0,95141.0,0.0799]
[1735480808356,4.216413,95151.0,95141.0,0.0799]
[1735480808534,0.01649319,95148.0,95141.0,0.0799]
[1735480808857,4.079534,95147.0,95141.0,0.0799]
[1735480809009,3.976066,95147.0,95141.0,0.0799]
[1735480809227,3.862798,95147.0,95141.0,0.0799]
[1735480810133,3.875105,95146.0,95141.0,0.0799]
[1735480810313,3.819477,95147.0,95141.0,0.0799]
[1735480810733,3.819477,95147.0,95138.0,0.0473]
[1735480810942,3.819477,95147.0,95132.0,0.0001708]
[1735480810943,0.00787719,95146.0,95132.0,0.0001708]
[1735480811143,3.990337,95145.0,95132.0,0.0001708]
[1735480811352,3.902756,95145.0,95132.0,0.0001708]
[1735480811562,0.00118796,95144.0,95132.0,0.0001708]
[1735480811762,3.41448696,95144.0,95132.0,0.0001708]
[1735480812066,3.316981,95143.0,95132.0,0.0001708]
[1735480812462,0.02097339,95142.0,95132.0,0.0001708]
[1735480812662,3.60823,95141.0,95132.0,0.0001708]
[1735480812910,0.00118796,95140.0,95132.0,0.0001708]
[1735480813131,3.721208,95139.0,95132.0,0.0001708]
[1735480813286,3.696858,95139.0,95132.0,0.0001708]
[1735480813639,0.00118796,95138.0,95132.0,0.0001708]
[1735480813813,3.798785,95137.0,95132.0,0.0001708]
[1735480814207,3.79997307,95137.0,95132.0,0.0001708]
[1735480814545,4.092922,95136.0,95132.0,0.0011708]
[1735480814746,4.092922,95136.0,95132.0,0.0001708]
[1735480815054,3.764002,95144.0,95132.0,0.0001708]
[1735480815252,0.00118807,95136.0,95132.0,0.0001708]
[1735480815477,3.89889,95135.0,95132.0,0.0001708]
[1735480815819,3.67334,95135.0,95132.0,0.0001708]
[1735480816188,3.757452,95134.0,95132.0,0.0001708]
[1735480816364,3.788468,95135.0,95132.0,0.0001708]
[1735480816728,3.80496239,95135.0,95132.0,0.0001708]
[1735480816929,4.069789,95134.0,95132.0,0.0001708]
[1735480817980,4.014208,95134.0,95132.0,0.0001708]
[1735480818183,0.01649439,95135.0,95132.0,0.0001708]
[1735480818184,3.745462,95133.0,95132.0,0.0001708]
[1735480818326,3.82967,95134.0,95132.0,0.0011708]
[1735480818527,3.803841,95134.0,95132.0,0.0011708]
[1735480818729,3.86202,95134.0,95132.0,0.0001708]
[1735480818932,3.29726,95133.0,95132.0,0.0001708]
[1735480819211,3.490758,95134.0,95132.0,0.0011708]
[1735480819422,3.565859,95134.0,95132.0,0.0011708]
[1735480819556,3.565859,95134.0,95132.0,0.0021708]
[1735480819771,0.01768246,95135.0,95132.0,0.0021708]
[1735480819956,3.704902,95134.0,95132.0,0.0021708]
[1735480820157,3.704902,95134.0,95132.0,0.0011708]
[1735480821529,3.704902,95134.0,95132.0,0.0001708]
[1735480821904,3.413935,95134.0,95132.0,0.0011708]
[1735480822105,3.411073,95134.0,95132.0,0.0011708]
[1735480822717,3.323124,95133.0,95132.0,0.0011708]
[1735480822899,3.224596,95134.0,95132.0,0.0021708]
[1735480823275,3.133184,95134.0,95132.0,0.0021708]
[1735480824236,0.00118814,95134.0,95132.0,0.0021708]
[1735480824444,3.590511,95133.0,95132.0,0.0021708]
[1735480824825,3.56272514,95133.0,95132.0,0.0021708]
[1735480825179,3.37383514,95133.0,95132.0,0.0021708]
[1735480825574,2.88567414,95133.0,95132.0,0.0001708]
[1735480825782,2.57521114,95133.0,95132.0,0.0802708]
[1735480825982,1.831456,95133.0,95132.0,0.1266708]
[1735480826183,0.28407725,95144.0,95132.0,0.1266708]
[1735480826184,0.00118814,95139.0,95132.0,0.1266708]
[1735480826388,3.820684,95138.0,95132.0,0.1266708]
[1735480827205,8.54e-05,95136.0,95132.0,0.1266708]
[1735480827379,2.942919,95135.0,95132.0,0.1266708]
[1735480827995,2.942919,95135.0,95132.0,0.1256708]
[1735480828353,2.553311,95135.0,95132.0,0.1256708]
[1735480829710,2.553311,95135.0,95132.0,0.0455708]
[1735480829912,2.266898,95134.0,95133.0,0.0801]
[1735480830116,2.248138,95135.0,95133.0,0.0801]
[1735480830359,2.271831,95135.0,95133.0,0.0801]
[1735480830556,1.94782,95134.0,95133.0,0.0801]
[1735480830767,2.136597,95135.0,95133.0,0.0801]
[1735480830941,2.33791,95135.0,95133.0,0.0801]
[1735480831587,8.54e-05,95136.0,95133.0,0.0801]
[1735480831769,2.431983,95135.0,95133.0,0.0801]
[1735480831944,1.762455,95135.0,95133.0,0.0801]
[1735480832700,1.762455,95135.0,95133.0,0.0811]
[1735480833112,1.762455,95135.0,95133.0,0.0801]
[1735480833506,1.762455,95135.0,95133.0,0.0811]
[1735480837137,1.77894926,95135.0,95133.0,0.0811]
[1735480837336,2.320751,95134.0,95133.0,0.0811]
[1735480837555,2.020252,95134.0,95133.0,0.0811]
[1735480837806,1.970183,95134.0,95133.0,0.0811]
[1735480839470,1.970183,95134.0,95133.0,0.0801]
[1735480840024,1.970183,95134.0,95133.0,0.0811]
[1735480843523,1.78580713,95134.0,95133.0,0.0811]
[1735480844167,2.258597,95135.0,95133.0,0.0811]
[1735480844422,2.216893,95134.0,95133.0,0.0811]
[1735480844595,2.336893,95134.0,95133.0,0.0811]
[1735480846228,1.94933,95134.0,95133.0,0.0811]
[1735480846755,1.94933,95134.0,95133.0,0.0821]
[1735480846974,1.96582428,95134.0,95133.0,0.0821]
[1735480847279,1.96582428,95134.0,95133.0,0.0811]
[1735480847828,1.96582428,95134.0,95133.0,0.0821]
[1735480848579,1.88224228,95134.0,95133.0,0.0821]
[1735480848725,1.39948333,95134.0,95133.0,0.0821]
[1735480849123,1.56284428,95134.0,95133.0,0.0821]
[1735480849333,1.51091928,95134.0,95133.0,0.0821]
[1735480851360,1.43895728,95134.0,95133.0,0.0821]
[1735480851629,1.18996128,95134.0,95133.0,0.0821]
[1735480852037,0.92129128,95134.0,95133.0,0.0821]
[1735480852610,0.92129128,95134.0,95133.0,0.0822708]
[1735480852983,0.01649428,95134.0,95133.0,0.0822708]
[1735480853184,1.21341828,95134.0,95133.0,0.0822708]
[1735480853403,1.23674928,95134.0,95133.0,0.0822708]
[1735480853805,1.220255,95134.0,95133.0,0.0822708]
[1735480854006,1.243405,95135.0,95133.0,0.0822708]
[1735480854941,1.243405,95135.0,95133.0,0.0812708]
[1735480855336,1.243405,95135.0,95133.0,0.0802708]
[1735480855753,1.082963,95135.0,95133.0,0.0812708]
[1735480855963,1.242507,95135.0,95133.0,0.0812708]
[1735480856138,0.565915,95135.0,95133.0,0.0812708]
[1735480856342,1.066629,95135.0,95133.0,0.0812708]
[1735480857089,1.08312299,95135.0,95133.0,0.0812708]
[1735480857225,1.221832,95134.0,95133.0,0.0812708]
[1735480857852,1.221832,95134.0,95133.0,0.0822708]
[1735480858269,1.221832,95134.0,95133.0,0.0812708]
[1735480858730,1.076965,95134.0,95133.0,0.0812708]
[1735480859061,1.076965,95134.0,95133.0,0.0822708]
[1735480860188,0.940474,95134.0,95133.0,0.0822708]
[1735480860594,0.372975,95134.0,95133.0,0.2822708]
[1735480861230,0.01649399,95135.0,95134.0,0.3265]
[1735480863412,8.54e-05,95136.0,95134.0,0.3265]
[1735480863642,8.54e-05,95136.0,95135.0,0.12655091]
[1735480863983,8.54e-05,95136.0,95135.0,0.22655091]
[1735480864186,8.54e-05,95136.0,95135.0,0.2255]
[1735480864316,8.54e-05,95136.0,95135.0,0.25818416]
[1735480866217,8.54e-05,95136.0,95135.0,0.26218416]
[1735480866618,8.54e-05,95136.0,95135.0,0.27118416]
[1735480866824,0.01657722,95136.0,95135.0,0.27118416]
[1735480868686,0.01657722,95136.0,95135.0,0.26718416]
[1735480869633,8.54e-05,95145.0,95139.0,0.2]
[1735480869859,8.54e-05,95145.0,95144.0,0.299879]
[1735480870066,8.54e-05,95145.0,95144.0,0.31978132]
[1735480870420,0.01657629,95145.0,95144.0,0.31978132]
[1735480870817,0.01657629,95145.0,95144.0,0.27773932]
[1735480871019,0.01657629,95145.0,95144.0,0.21467632]
[1735480871239,0.01657629,95145.0,95144.0,0.25145237]
[1735480871650,0.22678129,95145.0,95144.0,0.23043137]
[1735480871969,0.22678129,95145.0,95144.0,0.16736837]
[1735480872104,0.2323564,95145.0,95144.0,0.14739824]
[1735480872539,0.2323564,95145.0,95144.0,0.11062219]
[1735480872756,0.2323564,95145.0,95144.0,0.08960119]
[1735480872958,0.22678129,95145.0,95144.0,0.02653819]
[1735480873168,0.22678129,95145.0,95144.0,0.00551719]
[1735480873410,0.2323564,95145.0,95144.0,0.01451719]
[1735480873830,0.21586551,95145.0,95142.0,0.07247519]
[1735480874000,0.21586551,95145.0,95143.0,0.05833]
[1735480874143,0.21586551,95145.0,95144.0,0.009]
[1735480874551,0.21586551,95145.0,95144.0,0.015]
[1735480874967,0.21586551,95145.0,95144.0,0.07538052]
[1735480875399,0.21705369,95145.0,95144.0,0.07538052]
[1735480875866,0.21705369,95145.0,95144.0,0.15048052]
[1735480876052,0.21705369,95145.0,95144.0,0.1359]
[1735480876457,0.21705369,95145.0,95144.0,0.13695087]
[1735480876867,0.21705369,95145.0,95144.0,0.12795087]
[1735480877020,0.23354497,95145.0,95144.0,0.12795087]
[1735480877222,0.23454497,95145.0,95144.0,0.13695087]
[1735480877565,0.23354497,95145.0,95144.0,0.12195087]
[1735480877944,0.23454497,95145.0,95144.0,0.13095087]
[1735480878157,0.23335679,95145.0,95144.0,0.20417982]
[1735480878323,0.23435679,95145.0,95144.0,0.23784532]
[1735480878692,0.23435679,95145.0,95144.0,0.1635655]
[1735480878828,0.23435679,95145.0,95144.0,0.1359]
[1735480879013,0.23435679,95145.0,95144.0,0.31236151]
[1735480879214,0.22878168,95145.0,95144.0,0.31236151]
[1735480879445,0.23436194,95145.0,95144.0,0.31236151]
[1735480880098,0.23336194,95145.0,95144.0,0.30636151]
[1735480880301,0.23336194,95145.0,95144.0,0.33699766]
[1735480880464,0.23236194,95145.0,95144.0,0.32799766]
[1735480881266,0.23336194,95145.0,95144.0,0.30636151]
[1735480882349,0.44456694,95145.0,95144.0,0.29134051]
[1735480883034,0.44356694,95145.0,95144.0,0.28534051]
[1735480883461,0.44456694,95145.0,95144.0,0.29134051]
[1735480883695,0.44456694,95145.0,95144.0,0.33047456]
[1735480883892,0.42807566,95145.0,95144.0,0.33047456]
[1735480884106,0.4224954,95145.0,95144.0,0.43047456]
[1735480884458,0.4204954,95145.0,95144.0,0.41547456]
[1735480884848,0.42054631,95145.0,95144.0,0.41547456]
[1735480885484,0.42046091,95145.0,95144.0,0.42447456]
[1735480885696,0.42146091,95145.0,95144.0,0.42447456]
[1735480885800,0.42046091,95145.0,95144.0,0.41547456]
[1735480886492,0.42046091,95145.0,95144.0,0.42147456]
[1735480886719,0.210205,95145.0,95144.0,0.42147456]
[1735480887187,0.161305,95145.0,95144.0,0.31559556]
[1735480887669,0.161305,95145.0,95144.0,0.32459556]
[1735480887910,0.161305,95145.0,95144.0,0.33359556]
[1735480888139,0.161305,95145.0,95144.0,0.32459556]
[1735480888384,0.37151,95145.0,95144.0,0.31559556]
[1735480888615,0.37151,95145.0,95144.0,0.32459556]
[1735480888833,0.37151,95145.0,95144.0,0.43569556]
[1735480889072,0.3715954,95145.0,95144.0,0.43569556]
[1735480891167,0.3715954,95145.0,95144.0,0.44469556]
[1735480891494,0.38808073,95145.0,95144.0,0.44469556]
[1735480892187,0.38808073,95145.0,95144.0,0.33359556]
[1735480892389,0.38808073,95145.0,95144.0,0.44469556]
[1735480893474,0.3715954,95145.0,95144.0,0.44469556]
[1735480897311,0.3715954,95145.0,95144.0,0.48681256]
[1735480898598,8.54e-05,95145.0,95144.0,0.44469556]
[1735480898827,8.54e-05,95145.0,95144.0,0.48681056]
[1735480899074,8.54e-05,95145.0,95144.0,0.58171016]
[1735480899399,0.210194,95150.0,95149.0,0.17247519]
[1735480899647,0.21070318,95150.0,95149.0,0.33374961]
[1735480899849,0.00050918,95150.0,95149.0,0.44484961]
[1735480900313,0.01699257,95150.0,95149.0,0.44484961]
[1735480900509,0.01699257,95150.0,95149.0,0.45384961]
[1735480900714,0.01699257,95150.0,95149.0,0.46284961]
[1735480900960,0.01699257,95150.0,95149.0,0.60407928]
[1735480901590,0.01699257,95150.0,95149.0,0.59507928]
[1735480901997,0.00050918,95150.0,95149.0,0.59507928]
[1735480902217,0.00050918,95150.0,95149.0,0.80141261]
[1735480902419,0.00050918,95150.0,95149.0,0.80929083]
[1735480902561,0.210145,95172.0,95171.0,0.17247519]
[1735480902756,0.21019589,95172.0,95171.0,0.27646151]
[1735480902961,0.21019589,95172.0,95171.0,0.30410766]
[1735480903681,5.089e-05,95172.0,95171.0,0.30410766]
[1735480904069,5.089e-05,95172.0,95171.0,0.31310766]
[1735480904339,5.089e-05,95172.0,95171.0,0.89574528]
[1735480904489,5.089e-05,95172.0,95171.0,0.88674528]
[1735480904895,5.089e-05,95172.0,95171.0,0.9036235]
[1735480905102,5.089e-05,95172.0,95171.0,0.9126235]
[1735480905303,5.089e-05,95172.0,95171.0,0.66854888]
[1735480905930,5.089e-05,95172.0,95171.0,0.66067066]
[1735480907633,5.089e-05,95172.0,95171.0,0.66967066]
[1735480908112,5.089e-05,95172.0,95171.0,0.78077066]
[1735480908319,5.089e-05,95172.0,95171.0,0.77177066]
[1735480908520,5.089e-05,95172.0,95171.0,0.77064888]
[1735480908736,5.089e-05,95172.0,95171.0,0.77964888]
[1735480908986,5.089e-05,95172.0,95171.0,0.78864888]
[1735480909338,3.94646987,95180.0,95179.0,0.28357519]
[1735480909565,3.92573261,95180.0,95179.0,0.38756151]
[1735480910392,3.92573261,95180.0,95179.0,0.73512451]
[1735480910581,3.92573261,95180.0,95179.0,0.81110017]
[1735480910981,3.92573261,95180.0,95179.0,0.81897839]
[1735480912346,3.83967627,95180.0,95179.0,1.36968839]
[1735480912762,3.83967627,95180.0,95179.0,1.38226194]
[1735480912927,3.81967791,95180.0,95179.0,1.38226194]
[1735480913147,3.81967791,95180.0,95179.0,1.39126194]
[1735480913538,3.79848235,95180.0,95179.0,1.39126194]
[1735480914038,3.29843926,95180.0,95179.0,1.39126194]
[1735480914197,3.08830998,95180.0,95179.0,1.39126194]
[1735480914399,3.08830998,95180.0,95179.0,1.38226194]
[1735480914801,2.78295744,95180.0,95179.0,1.38226194]
[1735480915002,2.68967378,95180.0,95179.0,1.48936194]
[1735480915199,2.68975918,95180.0,95179.0,1.48936194]
[1735480915424,2.68975918,95180.0,95179.0,1.48036194]
[1735480915805,2.68975918,95180.0,95179.0,1.48936194]
[1735480916098,2.68975918,95180.0,95179.0,1.47136194]
[1735480916301,2.16295496,95180.0,95179.0,1.22965194]
[1735480916765,2.11438678,95180.0,95179.0,1.13865194]
[1735480917297,2.11438678,95180.0,95179.0,1.22965194]
[1735480917903,2.13519009,95180.0,95179.0,1.22965194]
[1735480918142,2.13519009,95180.0,95179.0,1.24765194]
[1735480918348,2.13519009,95180.0,95179.0,1.23865194]
[1735480919374,2.13519009,95180.0,95179.0,1.24765194]
[1735480919703,2.13519009,95180.0,95179.0,0.99368456]
[1735480920159,2.13519009,95180.0,95179.0,0.98111101]
[1735480920360,2.13519009,95180.0,95179.0,0.97211101]
[1735480920743,2.13519009,95180.0,95179.0,0.98111101]
[1735480920944,2.13519009,95180.0,95179.0,0.88751539]
[1735480922165,2.13519009,95180.0,95179.0,1.02790882]
[1735480924386,2.13519009,95180.0,95179.0,1.0200306]
[1735480925308,2.13519009,95180.0,95179.0,0.6219306]
[1735480925720,2.13519009,95180.0,95179.0,0.5219306]
[1735480925911,2.13519009,95180.0,95179.0,0.82709886]
[1735480926462,2.13519009,95180.0,95179.0,0.73492572]
[1735480927159,2.13519009,95180.0,95179.0,0.38936403]
[1735480927502,2.13519009,95180.0,95179.0,0.48936403]
[1735480927878,2.13519009,95180.0,95179.0,0.88936403]
[1735480928083,2.11438678,95180.0,95179.0,1.42893483]
[1735480928284,2.11438678,95180.0,95179.0,1.94547931]
[1735480928486,2.11438678,95180.0,95179.0,1.71875623]
[1735480928668,1.69211614,95180.0,95179.0,1.71875623]
[1735480928865,1.59065097,95180.0,95179.0,1.63378057]
[1735480929292,1.59065097,95180.0,95179.0,1.75473016]
[1735480929810,1.59065097,95180.0,95179.0,1.74573016]
[1735480930206,1.59065097,95180.0,95179.0,1.75473016]
[1735480931372,1.59065097,95180.0,95179.0,1.74573016]
[1735480931802,1.39335195,95180.0,95179.0,1.83613016]
[1735480931979,0.70900221,95180.0,95179.0,1.76475273]
[1735480932178,0.6383553,95180.0,95179.0,1.76475273]
[1735480932329,0.6383553,95180.0,95179.0,1.77375273]
[1735480932972,0.6383553,95180.0,95179.0,1.76475273]
[1735480933133,0.6383553,95180.0,95179.0,1.77375273]
[1735480933662,0.0002,95209.0,95208.0,0.17247519]
[1735480933961,0.00035265,95209.0,95208.0,0.86635951]
[1735480934188,0.00035265,95209.0,95208.0,0.88670936]
[1735480934393,0.20998845,95229.0,95228.0,0.17247519]
[1735480934569,0.20998845,95229.0,95228.0,0.27646151]
[1735480935031,0.20998845,95229.0,95228.0,0.28428837]
[1735480935380,0.209992,95242.0,95229.0,0.17247519]
[1735480935556,0.209992,95242.0,95229.0,0.27646151]
[1735480935695,0.209992,95242.0,95229.0,0.28428837]
[1735480935894,0.02070754,95230.0,95229.0,0.28428837]
[1735480937133,0.02070754,95230.0,95229.0,0.3246447]
[1735480937333,0.02070754,95230.0,95229.0,0.3336447]
[1735480938184,0.02070754,95230.0,95229.0,0.4357447]
[1735480938399,0.02070754,95230.0,95229.0,0.7584947]
[1735480938600,0.02070754,95230.0,95229.0,0.7674947]
[1735480938774,0.02070754,95230.0,95229.0,0.7584947]
[1735480939070,0.02070754,95230.0,95229.0,0.78001769]
[1735480939329,0.02070754,95230.0,95229.0,0.87366446]
[1735480939698,0.02070754,95230.0,95229.0,0.55091446]
[1735480939911,0.02070754,95230.0,95229.0,3.71599546]
[1735480940071,0.02070754,95230.0,95229.0,3.24285046]
[1735480940270,0.02070754,95230.0,95229.0,3.23385046]
[1735480940470,0.02070754,95230.0,95229.0,2.89828445]
[1735480940698,0.02070754,95230.0,95229.0,2.91628445]
[1735480940854,0.02070754,95230.0,95229.0,2.75514245]
[1735480941062,0.02070754,95230.0,95229.0,3.28554245]
[1735480941484,0.02070754,95230.0,95229.0,2.12774445]
[1735480941889,0.02070754,95230.0,95229.0,2.11874445]
[1735480942319,0.02070754,95230.0,95229.0,2.12774445]
[1735480943098,0.02070754,95230.0,95229.0,2.11874445]
[1735480943303,0.02070754,95230.0,95229.0,2.12774445]
[1735480943648,0.209939,95266.0,95248.0,0.47247519]
[1735480943805,0.209939,95266.0,95248.0,1.33037451]
[1735480943806,0.00070906,95249.0,95248.0,1.33037451]
[1735480944037,0.00070906,95249.0,95248.0,1.35773084]
[1735480944438,0.00070906,95249.0,95248.0,1.04796469]
[1735480944637,0.00070906,95249.0,95248.0,1.03264469]
[1735480945045,0.00070906,95249.0,95248.0,1.01704469]
[1735480945364,0.02195403,95249.0,95248.0,1.36246345]
[1735480945524,0.18085047,95266.0,95265.0,0.17247519]
[1735480945726,0.18100306,95266.0,95265.0,0.27646151]
[1735480946152,0.18100306,95266.0,95265.0,0.28428837]
[1735480946852,0.18100306,95266.0,95265.0,0.29328837]
[1735480947656,0.20252812,95266.0,95265.0,0.29328837]
[1735480947863,0.0107099,95275.0,95274.0,0.17247519]
[1735480948085,0.209918,95275.0,95274.0,0.27646151]
[1735480948313,0.22637833,95275.0,95274.0,0.13505359]
[1735480948507,0.22637833,95275.0,95274.0,0.14288045]
[1735480948651,0.24775808,95275.0,95274.0,0.12460957]
[1735480949496,0.24775808,95275.0,95274.0,0.13360957]
[1735480949697,0.03784008,95275.0,95274.0,0.14260957]
[1735480950516,0.03784008,95275.0,95274.0,0.1165195]
[1735480950717,0.03784008,95275.0,95274.0,0.10856872]
[1735480950890,0.03784008,95275.0,95274.0,0.08217482]
[1735480951093,0.03784008,95275.0,95274.0,0.06253284]
[1735480951292,0.03784008,95275.0,95274.0,0.05353284]
[1735480951694,0.03784008,95275.0,95274.0,0.06253284]
[1735480951900,0.03784008,95275.0,95274.0,0.12791966]
[1735480952105,0.03784008,95275.0,95274.0,0.11891966]
[1735480953516,0.03784008,95275.0,95274.0,0.12791966]
[1735480953726,0.02137975,95275.0,95274.0,0.12791966]
[1735480954560,0.02137975,95275.0,95274.0,0.23901966]
[1735480954768,0.02137975,95275.0,95274.0,0.23797044]
[1735480955389,0.23129775,95275.0,95274.0,0.23797044]
[1735480955801,0.23129775,95275.0,95274.0,0.22897044]
[1735480956137,0.23129775,95275.0,95274.0,0.23797044]
[1735480956672,0.23129775,95275.0,95274.0,0.22897044]
[1735480956849,0.02137975,95275.0,95274.0,0.22897044]
[1735480957216,0.02137975,95275.0,95274.0,0.23797044]
[1735480957416,0.02137975,95275.0,95274.0,0.21685511]
[1735480957849,0.02137975,95275.0,95274.0,0.17883836]
[1735480959396,0.02137975,95275.0,95274.0,0.06773836]
[1735480959590,0.02137975,95275.0,95274.0,0.06878757]
[1735480960002,0.02137975,95275.0,95274.0,0.01023757]
[1735480960204,0.09887975,95275.0,95274.0,0.10398632]
[1735480960360,0.09887975,95275.0,95274.0,0.05319423]
[1735480960557,0.0775,95273.0,95268.0,0.0934843]
[1735480960769,0.333931,95269.0,95264.0,0.12041803]
[1735480960967,0.0775,95268.0,95264.0,0.07941803]
[1735480961199,0.209936,95267.0,95261.0,0.18175649]
[1735480961403,0.0465,95266.0,95261.0,0.16062995]
[1735480961638,0.209947,95262.0,95261.0,0.16062995]
[1735480961857,0.287447,95262.0,95261.0,0.03656995]
[1735480962238,0.0775,95248.0,95243.0,0.1111]
[1735480962437,0.0775,95248.0,95244.0,0.00015259]
[1735480963233,0.02138228,95245.0,95244.0,0.00015259]
[1735480963655,0.01646209,95259.0,95244.0,0.00015259]
[1735480963985,0.209952,95260.0,95244.0,0.00015259]
[1735480964535,0.02107065,95245.0,95244.0,0.00915259]
[1735480964736,0.02107065,95245.0,95244.0,0.11313891]
[1735480964937,0.02107065,95245.0,95244.0,0.72855791]
[1735480965168,0.001,95248.0,95247.0,0.4887]
[1735480965372,0.001,95248.0,95247.0,1.53088132]
[1735480965647,0.001,95248.0,95247.0,1.12144432]
[1735480965983,0.02244545,95248.0,95247.0,1.12144432]
[1735480966386,0.02144545,95248.0,95247.0,1.12144432]
[1735480966631,0.02244545,95248.0,95247.0,1.13044432]
[1735480967058,0.001,95248.0,95247.0,1.13044432]
[1735480967616,0.002,95248.0,95247.0,1.13944432]
[1735480970389,0.002,95248.0,95247.0,1.14730004]
[1735480970626,0.002,95248.0,95247.0,1.17997169]
[1735480971655,0.002,95248.0,95247.0,1.19254171]
[1735480972064,0.002,95248.0,95247.0,1.53819975]
[1735480973362,0.002,95248.0,95247.0,2.07759975]
[1735480973584,0.002,95248.0,95247.0,2.31141832]
[1735480973795,0.002,95248.0,95247.0,1.78266032]
[1735480974487,0.002,95248.0,95247.0,4.32805032]
[1735480974691,0.002,95248.0,95247.0,4.33642932]
[1735480975183,0.002,95248.0,95247.0,4.10261075]
[1735480975420,0.1262854,95275.0,95263.0,0.1111]
[1735480975612,0.1262854,95275.0,95274.0,0.10398632]
[1735480976032,0.1262854,95275.0,95274.0,0.13670865]
[1735480976234,0.1262854,95275.0,95274.0,0.12441206]
[1735480976392,0.14778769,95275.0,95274.0,0.12441206]
[1735480976812,0.14878769,95275.0,95274.0,0.12441206]
[1735480977017,0.14778769,95275.0,95274.0,0.12441206]
[1735480977415,0.14878769,95275.0,95274.0,0.13341206]
[1735480977614,0.14778769,95275.0,95274.0,0.13341206]
[1735480978026,0.14878769,95275.0,95274.0,0.14241206]
[1735480979281,0.14878769,95275.0,95274.0,0.17514248]
[1735480979413,0.14878769,95275.0,95274.0,0.13341206]
[1735480979612,0.14878769,95275.0,95274.0,0.16614323]
[1735480979812,0.14878769,95275.0,95274.0,0.17514323]
[1735480980016,0.14878769,95275.0,95274.0,0.48929582]
[1735480980649,0.14878769,95275.0,95274.0,0.46800383]
[1735480981260,0.14878769,95275.0,95274.0,0.43399481]
[1735480981459,0.14878769,95275.0,95274.0,0.41356907]
[1735480981807,0.14878769,95275.0,95274.0,0.42142677]
[1735480982678,0.14878769,95275.0,95274.0,0.07454301]
[1735480984770,0.14878769,95275.0,95274.0,0.06554301]
[1735480985206,0.14878769,95275.0,95274.0,0.07454301]
[1735480985413,0.14878769,95275.0,95274.0,0.42201344]
[1735480985815,0.14878769,95275.0,95274.0,0.41301344]
[1735480985989,0.14778769,95275.0,95274.0,0.42743758]
[1735480986504,0.14778769,95275.0,95274.0,0.43643758]
[1735480987226,0.209918,95275.0,95274.0,0.43643758]
[1735480988028,0.209918,95275.0,95274.0,0.43660838]
[1735480988250,0.2100034,95275.0,95274.0,0.43660838]
[1735480988451,0.23098323,95275.0,95274.0,0.43660838]
[1735480989417,0.23098323,95275.0,95274.0,0.41046067]
[1735480990089,0.35768323,95275.0,95274.0,0.41046067]
[1735480990931,0.35768323,95275.0,95274.0,0.37495067]
[1735480992351,0.35768323,95275.0,95274.0,0.343216]
[1735480994620,0.35768323,95275.0,95274.0,0.23920093]
[1735480994829,0.35768323,95275.0,95274.0,0.03165923]
[1735480995035,0.209923,95273.0,95272.0,0.12793376]
[1735480995160,0.337423,95273.0,95272.0,0.12793376]
[1735480995369,0.337423,95273.0,95268.0,0.23563332]
[1735480995370,0.209925,95272.0,95271.0,0.14149353]
[1735480995568,0.337425,95272.0,95271.0,0.14149353]